[Event "Late-Titled-Tuesday-Blitz-June-25-2024"]
[Site "Chess.com"]
[Date "2024.06.25"]
[Round "5"]
[White "rychessmaster1"]
[Black "Gangster-accountant01"]
[Result "0-1"]
[WhiteElo "2783"]
[BlackElo "2582"]
[TimeControl "180+1"]
[EndTime "14:55:06 PDT"]
[Termination "Gangster-accountant01 won by resignation"]

1. d4 {[%clk 0:02:59.5]} 1... d5 {[%clk 0:02:57.8]} 2. c4 {[%clk 0:02:59.7]}
2... dxc4 {[%clk 0:02:56.9]} 3. Nf3 {[%clk 0:02:59.6]} 3... Nf6 {[%clk
0:02:56.1]} 4. e3 {[%clk 0:03:00.1]} 4... e6 {[%clk 0:02:54.1]} 5. Bxc4 {[%clk
0:03:00.3]} 5... a6 {[%clk 0:02:54.6]} 6. O-O {[%clk 0:02:58.3]} 6... Be7 {[%clk
0:02:54.4]} 7. Re1 {[%clk 0:02:47.3]} 7... O-O {[%clk 0:02:52.2]} 8. b3 {[%clk
0:02:33.9]} 8... c5 {[%clk 0:02:48.8]} 9. Bb2 {[%clk 0:02:32.9]} 9... cxd4
{[%clk 0:02:45.8]} 10. Nxd4 {[%clk 0:02:32.1]} 10... b5 {[%clk 0:02:41.8]} 11.
Be2 {[%clk 0:02:32.3]} 11... Bb7 {[%clk 0:02:41.7]} 12. Nd2 {[%clk 0:02:30.7]}
12... Nbd7 {[%clk 0:02:35.8]} 13. Rc1 {[%clk 0:02:25.9]} 13... Qb6 {[%clk
0:02:24.9]} 14. Bf3 {[%clk 0:02:20]} 14... Rac8 {[%clk 0:02:18.5]} 15. Qe2
{[%clk 0:02:07.4]} 15... Bb4 {[%clk 0:02:03.1]} 16. Red1 {[%clk 0:01:54]} 16...
Rfd8 {[%clk 0:01:50.2]} 17. h3 {[%clk 0:01:51]} 17... Bd6 {[%clk 0:01:41.7]} 18.
Bxb7 {[%clk 0:01:30.2]} 18... Qxb7 {[%clk 0:01:41.5]} 19. N2f3 {[%clk
0:01:30.5]} 19... Rxc1 {[%clk 0:01:38]} 20. Rxc1 {[%clk 0:01:31.4]} 20... Rc8
{[%clk 0:01:30.2]} 21. Qe1 {[%clk 0:01:20.3]} 21... h6 {[%clk 0:01:20.6]} 22.
Rxc8+ {[%clk 0:00:55.3]} 22... Qxc8 {[%clk 0:01:20.3]} 23. Qa5 {[%clk
0:00:55.9]} 23... Nd5 {[%clk 0:01:09.4]} 24. Ba3 {[%clk 0:00:48.3]} 24... b4
{[%clk 0:00:54.8]} 25. Bb2 {[%clk 0:00:48.8]} 25... Nc5 {[%clk 0:00:26.6]} 26.
e4 {[%clk 0:00:12.5]} 26... Nxe4 {[%clk 0:00:26.2]} 27. Qa4 {[%clk 0:00:07.5]}
27... Nec3 {[%clk 0:00:22.2]} 28. Qc6 {[%clk 0:00:07.3]} 28... Qxc6 {[%clk
0:00:22]} 29. Nxc6 {[%clk 0:00:08.2]} 29... Nxa2 {[%clk 0:00:22.5]} 30. Nd2
{[%clk 0:00:07.3]} 30... Nac3 {[%clk 0:00:22.5]} 31. Nc4 {[%clk 0:00:07.8]}
31... Bf8 {[%clk 0:00:22.1]} 32. Kf1 {[%clk 0:00:07.3]} 32... Bc5 {[%clk
0:00:20.3]} 33. Ke1 {[%clk 0:00:06.9]} 33... Nf4 {[%clk 0:00:20.5]} 34. g3
{[%clk 0:00:03.5]} 34... Nd3+ {[%clk 0:00:20.2]} 35. Kd2 {[%clk 0:00:03.5]}
35... Nxb2 {[%clk 0:00:20]} 36. Nxb2 {[%clk 0:00:04.4]} 36... Ne4+ {[%clk
0:00:19.6]} 37. Kd3 {[%clk 0:00:04.4]} 37... Nxf2+ {[%clk 0:00:20]} 38. Kc4
{[%clk 0:00:05.1]} 38... Bd6 {[%clk 0:00:20]} 39. g4 {[%clk 0:00:05.4]} 39...
Nxh3 {[%clk 0:00:20.2]} 40. Nd3 {[%clk 0:00:05.4]} 40... f5 {[%clk 0:00:19.2]}
41. gxf5 {[%clk 0:00:05.5]} 41... exf5 {[%clk 0:00:20.1]} 42. Kd5 {[%clk
0:00:05.2]} 42... Bf8 {[%clk 0:00:20.1]} 43. Ke5 {[%clk 0:00:05]} 43... f4
{[%clk 0:00:20.1]} 44. Ke4 {[%clk 0:00:05.7]} 44... g5 {[%clk 0:00:20]} 45. Kf3
{[%clk 0:00:06]} 45... Ng1+ {[%clk 0:00:20.3]} 46. Kf2 {[%clk 0:00:05.9]} 46...
Nh3+ {[%clk 0:00:20.6]} 47. Kf3 {[%clk 0:00:06.5]} 47... h5 {[%clk 0:00:20.9]}
48. Nb8 {[%clk 0:00:05.7]} 48... g4+ {[%clk 0:00:21.4]} 49. Kg2 {[%clk
0:00:05.8]} 49... f3+ {[%clk 0:00:22]} 50. Kf1 {[%clk 0:00:04.6]} 50... g3
{[%clk 0:00:22]} 51. Ne1 {[%clk 0:00:03.7]} 51... g2+ {[%clk 0:00:17.6]} 52.
Nxg2 {[%clk 0:00:04.3]} 52... fxg2+ {[%clk 0:00:18.5]} 53. Kxg2 {[%clk
0:00:05.2]} 53... Nf4+ {[%clk 0:00:19.3]} 54. Kf3 {[%clk 0:00:05.9]} 54... Ne6
{[%clk 0:00:18.8]} 55. Nxa6 {[%clk 0:00:06.5]} 55... Nd4+ {[%clk 0:00:19.5]} 56.
Ke4 {[%clk 0:00:07]} 56... Nxb3 {[%clk 0:00:20.4]} 57. Kf5 {[%clk 0:00:07.4]}
57... Nd4+ {[%clk 0:00:19.8]} 58. Kg5 {[%clk 0:00:07.5]} 58... b3 {[%clk
0:00:20.5]} 0-1

[Event "Late-Titled-Tuesday-Blitz-June-25-2024"]
[Site "Chess.com"]
[Date "2024.06.25"]
[Round "5"]
[White "WilsonPalencia21"]
[Black "Bkmzzzzz"]
[Result "1-0"]
[WhiteElo "2600"]
[BlackElo "2401"]
[TimeControl "180+1"]
[EndTime "14:55:07 PDT"]
[Termination "WilsonPalencia21 won by resignation"]

1. d4 {[%clk 0:03:00.3]} 1... d5 {[%clk 0:02:56.8]} 2. c4 {[%clk 0:03:00.7]}
2... dxc4 {[%clk 0:02:57.7]} 3. Nf3 {[%clk 0:03:00.9]} 3... a6 {[%clk
0:02:57.7]} 4. e3 {[%clk 0:03:00.8]} 4... Nf6 {[%clk 0:02:58.1]} 5. Bxc4 {[%clk
0:03:00.3]} 5... e6 {[%clk 0:02:58.7]} 6. O-O {[%clk 0:02:59.2]} 6... c5 {[%clk
0:02:59.3]} 7. dxc5 {[%clk 0:02:59.5]} 7... Bxc5 {[%clk 0:02:57.6]} 8. Qxd8+
{[%clk 0:02:58.8]} 8... Kxd8 {[%clk 0:02:58.5]} 9. Nbd2 {[%clk 0:02:58.6]} 9...
b5 {[%clk 0:02:57.1]} 10. Be2 {[%clk 0:02:57.2]} 10... Bb7 {[%clk 0:02:57.5]}
11. Nb3 {[%clk 0:02:57.4]} 11... Bd6 {[%clk 0:02:56]} 12. Bd2 {[%clk 0:02:56.9]}
12... Ke7 {[%clk 0:02:54.9]} 13. Na5 {[%clk 0:02:57.1]} 13... Bd5 {[%clk
0:02:47.8]} 14. a4 {[%clk 0:02:52.2]} 14... b4 {[%clk 0:02:28.9]} 15. Rfc1
{[%clk 0:02:49]} 15... Ne4 {[%clk 0:02:22.3]} 16. Be1 {[%clk 0:02:47.6]} 16...
Nd7 {[%clk 0:02:04]} 17. Nd4 {[%clk 0:02:44]} 17... Nb8 {[%clk 0:01:19.4]} 18.
f3 {[%clk 0:02:40.6]} 18... Nf6 {[%clk 0:01:04.9]} 19. e4 {[%clk 0:02:40.6]}
19... Nxe4 {[%clk 0:00:52.7]} 20. fxe4 {[%clk 0:02:38.8]} 20... Bxe4 {[%clk
0:00:53.6]} 21. Bf3 {[%clk 0:02:31]} 21... Bxf3 {[%clk 0:00:53.5]} 22. gxf3
{[%clk 0:02:31.1]} 22... Kd7 {[%clk 0:00:50.2]} 23. Nb7 {[%clk 0:02:00]} 23...
Be5 {[%clk 0:00:46.8]} 24. Bf2 {[%clk 0:02:00]} 24... Rc8 {[%clk 0:00:41.2]} 25.
Nc5+ {[%clk 0:01:57.2]} 25... Ke7 {[%clk 0:00:39.3]} 26. Nd3 {[%clk 0:01:53.7]}
26... Rxc1+ {[%clk 0:00:36.5]} 27. Rxc1 {[%clk 0:01:54.6]} 27... Bd6 {[%clk
0:00:36.4]} 28. Nc6+ {[%clk 0:01:45]} 28... Nxc6 {[%clk 0:00:37]} 29. Rxc6
{[%clk 0:01:45.1]} 29... a5 {[%clk 0:00:34.9]} 30. Bc5 {[%clk 0:01:41.4]} 30...
Bxc5+ {[%clk 0:00:34.4]} 31. Rxc5 {[%clk 0:01:41.5]} 31... Rd8 {[%clk
0:00:34.2]} 32. Ne5 {[%clk 0:01:41.6]} 32... Rd1+ {[%clk 0:00:32.4]} 33. Kg2
{[%clk 0:01:36.6]} 33... Rd2+ {[%clk 0:00:33.1]} 34. Kg3 {[%clk 0:01:36.5]}
34... Rxb2 {[%clk 0:00:33.8]} 35. Rxa5 {[%clk 0:01:36.1]} 35... Kf6 {[%clk
0:00:28.9]} 36. Nd3 {[%clk 0:01:33.7]} 36... Rb3 {[%clk 0:00:28.5]} 37. Nc5
{[%clk 0:01:33.6]} 37... Ra3 {[%clk 0:00:28.2]} 38. Rb5 {[%clk 0:01:33.1]} 38...
h5 {[%clk 0:00:23]} 39. h4 {[%clk 0:01:31.2]} 39... Kg6 {[%clk 0:00:20.2]} 40.
Rxb4 {[%clk 0:01:30.3]} 40... e5 {[%clk 0:00:20.6]} 41. Rb6+ {[%clk 0:01:13.4]}
41... Kf5 {[%clk 0:00:18.8]} 42. Rb5 {[%clk 0:01:07.4]} 42... f6 {[%clk
0:00:18.5]} 43. a5 {[%clk 0:01:06.4]} 43... g5 {[%clk 0:00:18.3]} 44. hxg5
{[%clk 0:01:06.1]} 44... fxg5 {[%clk 0:00:19.2]} 45. Nb3 {[%clk 0:01:02.8]}
45... h4+ {[%clk 0:00:19.1]} 46. Kh3 {[%clk 0:00:56.6]} 46... Kf4 {[%clk
0:00:19.1]} 47. Nd2 {[%clk 0:00:53.1]} 47... Ra2 {[%clk 0:00:14.8]} 48. Rd5
{[%clk 0:00:47.6]} 48... Ke3 {[%clk 0:00:12]} 49. Nc4+ {[%clk 0:00:47.4]} 49...
Kxf3 {[%clk 0:00:12]} 50. Nxe5+ {[%clk 0:00:46.5]} 50... Ke4 {[%clk 0:00:10.5]}
51. Rb5 {[%clk 0:00:44.2]} 51... Ra3+ {[%clk 0:00:11]} 52. Kh2 {[%clk 0:00:44]}
52... Ra2+ {[%clk 0:00:11]} 53. Kg1 {[%clk 0:00:41.2]} 53... Kf4 {[%clk
0:00:09.7]} 54. Nd3+ {[%clk 0:00:40.4]} 54... Kg3 {[%clk 0:00:10]} 55. Rxg5+
{[%clk 0:00:39.5]} 55... Kf3 {[%clk 0:00:10.4]} 56. Ne1+ {[%clk 0:00:36.5]}
56... Ke2 {[%clk 0:00:09.3]} 57. Re5+ {[%clk 0:00:34.8]} 57... Kd1 {[%clk
0:00:08.7]} 58. Nf3 {[%clk 0:00:32.7]} 58... h3 {[%clk 0:00:08.9]} 59. Re1+
{[%clk 0:00:27]} 59... Kc2 {[%clk 0:00:07.6]} 60. Re2+ {[%clk 0:00:27.4]} 60...
Kb3 {[%clk 0:00:02.7]} 61. Rxa2 {[%clk 0:00:27.9]} 1-0

[Event "Late-Titled-Tuesday-Blitz-June-25-2024"]
[Site "Chess.com"]
[Date "2024.06.25"]
[Round "5"]
[White "WPWPWP-2015"]
[Black "nitpicker"]
[Result "0-1"]
[WhiteElo "2542"]
[BlackElo "2350"]
[TimeControl "180+1"]
[EndTime "14:55:08 PDT"]
[Termination "nitpicker won on time"]

1. e4 {[%clk 0:02:59.2]} 1... c5 {[%clk 0:02:59.9]} 2. Nf3 {[%clk 0:02:59.2]}
2... Nc6 {[%clk 0:03:00]} 3. Bb5 {[%clk 0:02:58.7]} 3... Nf6 {[%clk 0:02:58.9]}
4. Nc3 {[%clk 0:02:58.5]} 4... g6 {[%clk 0:02:58.2]} 5. O-O {[%clk 0:02:58.5]}
5... Bg7 {[%clk 0:02:58]} 6. Re1 {[%clk 0:02:58.1]} 6... O-O {[%clk 0:02:56.6]}
7. h3 {[%clk 0:02:58.2]} 7... d6 {[%clk 0:02:37]} 8. a3 {[%clk 0:02:58]} 8...
Bd7 {[%clk 0:02:32.8]} 9. d3 {[%clk 0:02:57.4]} 9... a6 {[%clk 0:02:32]} 10. Bc4
{[%clk 0:02:56.2]} 10... b5 {[%clk 0:02:31.5]} 11. Ba2 {[%clk 0:02:54.9]} 11...
Rc8 {[%clk 0:02:30.2]} 12. Bg5 {[%clk 0:02:53.4]} 12... h6 {[%clk 0:02:27.8]}
13. Be3 {[%clk 0:02:53.2]} 13... e6 {[%clk 0:01:46.6]} 14. Qd2 {[%clk
0:02:52.7]} 14... Kh7 {[%clk 0:01:44.7]} 15. Rab1 {[%clk 0:02:50.4]} 15... Qc7
{[%clk 0:01:31.1]} 16. Ne2 {[%clk 0:02:45.4]} 16... Ng8 {[%clk 0:01:18.5]} 17.
Nf4 {[%clk 0:02:38.9]} 17... Rce8 {[%clk 0:01:14.5]} 18. c3 {[%clk 0:02:37]}
18... f5 {[%clk 0:01:13.9]} 19. exf5 {[%clk 0:02:29.4]} 19... exf5 {[%clk
0:01:13]} 20. Nd5 {[%clk 0:02:20.4]} 20... Qd8 {[%clk 0:01:13.2]} 21. d4 {[%clk
0:02:16.9]} 21... c4 {[%clk 0:01:11.7]} 22. h4 {[%clk 0:02:00.9]} 22... Nf6
{[%clk 0:01:09.1]} 23. Nxf6+ {[%clk 0:01:59.4]} 23... Qxf6 {[%clk 0:01:08.2]}
24. Bf4 {[%clk 0:01:54.8]} 24... Re4 {[%clk 0:01:02.6]} 25. Rbd1 {[%clk
0:01:51.4]} 25... Rfe8 {[%clk 0:00:59.7]} 26. Bb1 {[%clk 0:01:50.4]} 26... R4e7
{[%clk 0:00:47.1]} 27. Bc2 {[%clk 0:01:38.5]} 27... Nd8 {[%clk 0:00:36.1]} 28.
Rxe7 {[%clk 0:01:15.5]} 28... Rxe7 {[%clk 0:00:33.7]} 29. d5 {[%clk 0:01:08.7]}
29... Nf7 {[%clk 0:00:32.1]} 30. Re1 {[%clk 0:01:03.5]} 30... Ne5 {[%clk
0:00:25.8]} 31. Ng5+ {[%clk 0:00:38.4]} 31... hxg5 {[%clk 0:00:19.1]} 32. Bxg5
{[%clk 0:00:38.1]} 32... Qf7 {[%clk 0:00:19.7]} 33. Bxe7 {[%clk 0:00:38.1]}
33... Qxe7 {[%clk 0:00:20.4]} 34. f4 {[%clk 0:00:38.4]} 34... Qxh4 {[%clk
0:00:21]} 35. Re3 {[%clk 0:00:27.6]} 35... Kg8 {[%clk 0:00:12.8]} 36. Rh3 {[%clk
0:00:21.5]} 36... Qf6 {[%clk 0:00:10.5]} 37. fxe5 {[%clk 0:00:20.9]} 37... Qxe5
{[%clk 0:00:11]} 38. Re3 {[%clk 0:00:17.9]} 38... Qf6 {[%clk 0:00:11.3]} 39. Qe2
{[%clk 0:00:16.4]} 39... Qh4 {[%clk 0:00:10.2]} 40. Qe1 {[%clk 0:00:11.2]} 40...
Qh5 {[%clk 0:00:09.3]} 41. Bd1 {[%clk 0:00:10.7]} 41... Qg5 {[%clk 0:00:08.8]}
42. Re7 {[%clk 0:00:07.2]} 42... Be5 {[%clk 0:00:06.6]} 43. Rxd7 {[%clk
0:00:07]} 43... Qh6 {[%clk 0:00:06.1]} 44. Re7 {[%clk 0:00:03.1]} 44... Qh2+
{[%clk 0:00:05.7]} 45. Kf1 {[%clk 0:00:03.1]} 45... Qh1+ {[%clk 0:00:05.7]} 46.
Kf2 {[%clk 0:00:03.4]} 46... Qh4+ {[%clk 0:00:05.8]} 47. Ke2 {[%clk 0:00:02.4]}
47... Qe4+ {[%clk 0:00:05.8]} 48. Kd2 {[%clk 0:00:02]} 48... Qd3+ {[%clk
0:00:05.6]} 0-1

[Event "Late-Titled-Tuesday-Blitz-June-25-2024"]
[Site "Chess.com"]
[Date "2024.06.25"]
[Round "5"]
[White "simaopdias"]
[Black "medinapazmiguel1968"]
[Result "0-1"]
[WhiteElo "2232"]
[BlackElo "2459"]
[TimeControl "180+1"]
[EndTime "14:55:08 PDT"]
[Termination "medinapazmiguel1968 won by checkmate"]

1. e4 {[%clk 0:03:00.2]} 1... c5 {[%clk 0:02:59.5]} 2. Nf3 {[%clk 0:03:00.7]}
2... Nc6 {[%clk 0:02:59.4]} 3. d4 {[%clk 0:03:01.6]} 3... cxd4 {[%clk 0:03:00]}
4. Nxd4 {[%clk 0:03:02.4]} 4... g6 {[%clk 0:03:00.5]} 5. Nxc6 {[%clk 0:03:01.2]}
5... bxc6 {[%clk 0:02:59.5]} 6. Qd4 {[%clk 0:03:01.7]} 6... Nf6 {[%clk
0:02:59.1]} 7. e5 {[%clk 0:03:02.3]} 7... Ng8 {[%clk 0:02:59.8]} 8. e6 {[%clk
0:03:01.2]} 8... Nf6 {[%clk 0:02:57.8]} 9. exf7+ {[%clk 0:02:56]} 9... Kxf7
{[%clk 0:02:58.7]} 10. Bc4+ {[%clk 0:02:55.9]} 10... d5 {[%clk 0:02:58.8]} 11.
O-O {[%clk 0:02:55.9]} 11... e5 {[%clk 0:02:48.7]} 12. Qd1 {[%clk 0:02:52.6]}
12... Bd6 {[%clk 0:02:45.7]} 13. Be2 {[%clk 0:02:50.2]} 13... Kg7 {[%clk
0:02:43.8]} 14. Bg5 {[%clk 0:02:46.8]} 14... h6 {[%clk 0:02:41.2]} 15. Bh4
{[%clk 0:02:46.6]} 15... g5 {[%clk 0:02:36.2]} 16. Bg3 {[%clk 0:02:46.4]} 16...
Rf8 {[%clk 0:02:22.3]} 17. f3 {[%clk 0:02:45.3]} 17... Qb6+ {[%clk 0:02:19.8]}
18. Kh1 {[%clk 0:02:41.7]} 18... Qxb2 {[%clk 0:02:14.1]} 19. Nd2 {[%clk
0:02:42]} 19... Qb7 {[%clk 0:02:10.8]} 20. c4 {[%clk 0:02:36.9]} 20... Qe7
{[%clk 0:01:58.8]} 21. cxd5 {[%clk 0:02:33.7]} 21... cxd5 {[%clk 0:01:59.7]} 22.
Nb3 {[%clk 0:02:24.6]} 22... a5 {[%clk 0:01:51.6]} 23. Rc1 {[%clk 0:02:21.8]}
23... a4 {[%clk 0:01:39.8]} 24. Nd2 {[%clk 0:02:21.8]} 24... Ba6 {[%clk
0:01:38.9]} 25. Bxa6 {[%clk 0:02:15.5]} 25... Rxa6 {[%clk 0:01:39.8]} 26. Re1
{[%clk 0:02:15.4]} 26... Re8 {[%clk 0:01:37.6]} 27. Nb1 {[%clk 0:02:09.7]} 27...
Ra5 {[%clk 0:01:07.5]} 28. Nc3 {[%clk 0:02:07.4]} 28... Rc5 {[%clk 0:00:57.4]}
29. Nxa4 {[%clk 0:02:01.7]} 29... Rxc1 {[%clk 0:00:58]} 30. Qxc1 {[%clk
0:02:02.5]} 30... Qd7 {[%clk 0:00:51.6]} 31. Nb6 {[%clk 0:01:55.6]} 31... Qb7
{[%clk 0:00:48.1]} 32. Bf2 {[%clk 0:01:25.3]} 32... d4 {[%clk 0:00:36.7]} 33.
Nc4 {[%clk 0:01:19]} 33... Qc6 {[%clk 0:00:33.5]} 34. Nxd6 {[%clk 0:01:15.4]}
34... Qxd6 {[%clk 0:00:34.4]} 35. a4 {[%clk 0:01:10.2]} 35... Ra8 {[%clk
0:00:32.9]} 36. Qc4 {[%clk 0:01:09.6]} 36... Ra7 {[%clk 0:00:27.4]} 37. Bg3
{[%clk 0:01:08.7]} 37... Re7 {[%clk 0:00:24.5]} 38. Qb5 {[%clk 0:01:06.3]} 38...
Nd7 {[%clk 0:00:21.4]} 39. a5 {[%clk 0:00:59.4]} 39... Re6 {[%clk 0:00:19.8]}
40. h4 {[%clk 0:00:57.1]} 40... Kg6 {[%clk 0:00:18]} 41. hxg5 {[%clk 0:00:57.1]}
41... hxg5 {[%clk 0:00:18.9]} 42. Kg1 {[%clk 0:00:56.5]} 42... d3 {[%clk
0:00:18.7]} 43. Qc4 {[%clk 0:00:44.4]} 43... Qc5+ {[%clk 0:00:18.3]} 44. Qxc5
{[%clk 0:00:42.9]} 44... Nxc5 {[%clk 0:00:19.2]} 45. Rd1 {[%clk 0:00:38.1]}
45... Ra6 {[%clk 0:00:17.1]} 46. Bxe5 {[%clk 0:00:36.7]} 46... Rxa5 {[%clk
0:00:17.7]} 47. Bd4 {[%clk 0:00:35.5]} 47... Ne6 {[%clk 0:00:10.9]} 48. Be3
{[%clk 0:00:33]} 48... Rd5 {[%clk 0:00:10.7]} 49. Rd2 {[%clk 0:00:32.1]} 49...
Kf5 {[%clk 0:00:10.6]} 50. Kf2 {[%clk 0:00:31.7]} 50... Nd8 {[%clk 0:00:10.8]}
51. g4+ {[%clk 0:00:30.1]} 51... Kg6 {[%clk 0:00:10.3]} 52. Bb6 {[%clk
0:00:28.2]} 52... Ne6 {[%clk 0:00:10.4]} 53. Ke3 {[%clk 0:00:26.1]} 53... Nf4
{[%clk 0:00:10.3]} 54. Bc7 {[%clk 0:00:23.3]} 54... Ne6 {[%clk 0:00:09.3]} 55.
Bg3 {[%clk 0:00:22]} 55... Nc5 {[%clk 0:00:08.4]} 56. Bf2 {[%clk 0:00:20.6]}
56... Nb3 {[%clk 0:00:08.1]} 57. Rxd3 {[%clk 0:00:19.4]} 57... Re5# {[%clk
0:00:06.9]} 0-1

[Event "Late-Titled-Tuesday-Blitz-June-25-2024"]
[Site "Chess.com"]
[Date "2024.06.25"]
[Round "5"]
[White "ChristopherYoo"]
[Black "AlexeiShirov"]
[Result "1-0"]
[WhiteElo "3036"]
[BlackElo "2871"]
[TimeControl "180+1"]
[EndTime "14:55:11 PDT"]
[Termination "ChristopherYoo won on time"]

1. d4 {[%clk 0:03:00.9]} 1... d5 {[%clk 0:02:59.6]} 2. Nf3 {[%clk 0:03:01.1]}
2... Nf6 {[%clk 0:02:58.5]} 3. Bf4 {[%clk 0:03:01.8]} 3... c5 {[%clk 0:02:57.7]}
4. e3 {[%clk 0:03:02.1]} 4... Nc6 {[%clk 0:02:57.4]} 5. Nbd2 {[%clk 0:03:02.4]}
5... Qb6 {[%clk 0:02:57.2]} 6. dxc5 {[%clk 0:02:59.1]} 6... Qxb2 {[%clk
0:02:56.6]} 7. c4 {[%clk 0:02:59.5]} 7... Bf5 {[%clk 0:02:49.7]} 8. g4 {[%clk
0:02:59.1]} 8... g5 {[%clk 0:02:49]} 9. Bxg5 {[%clk 0:02:54.5]} 9... Nxg4 {[%clk
0:02:21.7]} 10. cxd5 {[%clk 0:02:41.6]} 10... Nb4 {[%clk 0:02:17.3]} 11. Bb5+
{[%clk 0:02:41.2]} 11... Kd8 {[%clk 0:02:15.9]} 12. O-O {[%clk 0:02:41.2]} 12...
Rg8 {[%clk 0:02:13.3]} 13. Kh1 {[%clk 0:02:34.3]} 13... Nd3 {[%clk 0:02:04.9]}
14. Bxd3 {[%clk 0:02:07.2]} 14... Bxd3 {[%clk 0:02:04.5]} 15. Qa4 {[%clk
0:01:53.3]} 15... Bxf1 {[%clk 0:01:51]} 16. Rxf1 {[%clk 0:01:50.3]} 16... Ne5
{[%clk 0:01:34.8]} 17. Qe4 {[%clk 0:00:41.7]} 17... f6 {[%clk 0:01:06.1]} 18.
Bf4 {[%clk 0:00:34.3]} 18... Nxf3 {[%clk 0:00:56.4]} 19. Nxf3 {[%clk 0:00:34.1]}
19... Qe2 {[%clk 0:00:50.9]} 20. Rg1 {[%clk 0:00:28.8]} 20... Rxg1+ {[%clk
0:00:48.1]} 21. Kxg1 {[%clk 0:00:29.7]} 21... Rc8 {[%clk 0:00:45.5]} 22. c6
{[%clk 0:00:20.4]} 22... bxc6 {[%clk 0:00:34.6]} 23. dxc6 {[%clk 0:00:20.7]}
23... Qd1+ {[%clk 0:00:33.2]} 24. Kg2 {[%clk 0:00:20.6]} 24... e5 {[%clk
0:00:32.8]} 25. Bg3 {[%clk 0:00:13.1]} 25... Qd6 {[%clk 0:00:29.6]} 26. Qxh7
{[%clk 0:00:13.8]} 26... Qxc6 {[%clk 0:00:29.2]} 27. Qxa7 {[%clk 0:00:13.4]}
27... Bc5 {[%clk 0:00:27.2]} 28. Qf7 {[%clk 0:00:12.2]} 28... Be7 {[%clk
0:00:26.1]} 29. h4 {[%clk 0:00:10.8]} 29... Kd7 {[%clk 0:00:22.2]} 30. h5 {[%clk
0:00:10.5]} 30... Qe6 {[%clk 0:00:22.1]} 31. Qg6 {[%clk 0:00:09.7]} 31... Rg8
{[%clk 0:00:21.7]} 32. Qd3+ {[%clk 0:00:07.2]} 32... Ke8 {[%clk 0:00:21.1]} 33.
h6 {[%clk 0:00:07.3]} 33... e4 {[%clk 0:00:19.6]} 34. Qb5+ {[%clk 0:00:07.1]}
34... Kf8 {[%clk 0:00:17.4]} 35. Nd4 {[%clk 0:00:06.1]} 35... Qg4 {[%clk
0:00:16.6]} 36. Qd5 {[%clk 0:00:06.1]} 36... Qg6 {[%clk 0:00:14.5]} 37. Ne6+
{[%clk 0:00:06.2]} 37... Ke8 {[%clk 0:00:14]} 38. Nf4 {[%clk 0:00:04.6]} 38...
Qh7 {[%clk 0:00:12.4]} 39. Qc6+ {[%clk 0:00:04.1]} 39... Kf7 {[%clk 0:00:12.3]}
40. Qe6+ {[%clk 0:00:03.9]} 40... Kf8 {[%clk 0:00:12.1]} 41. Nd5 {[%clk
0:00:04]} 41... Rg6 {[%clk 0:00:09.8]} 42. Qc8+ {[%clk 0:00:02.7]} 42... Kf7
{[%clk 0:00:09.3]} 43. Nc7 {[%clk 0:00:03.5]} 43... Rg8 {[%clk 0:00:03.8]} 44.
Qe6+ {[%clk 0:00:03.7]} 44... Kf8 {[%clk 0:00:04]} 45. Qd5 {[%clk 0:00:03]}
45... Qxh6 {[%clk 0:00:02.3]} 46. Ne6+ {[%clk 0:00:03.7]} 46... Ke8 {[%clk
0:00:02]} 47. Qb5+ {[%clk 0:00:03.3]} 47... Kf7 {[%clk 0:00:01.9]} 48. Qc4
{[%clk 0:00:03.6]} 48... Ke8 {[%clk 0:00:01.9]} 49. Nc7+ {[%clk 0:00:03.4]}
49... Kf8 {[%clk 0:00:01.9]} 50. Ne6+ {[%clk 0:00:03.1]} 50... Ke8 {[%clk
0:00:01.5]} 51. Qa4+ {[%clk 0:00:02.7]} 51... Kf7 {[%clk 0:00:01.4]} 52. Qb3
{[%clk 0:00:03.1]} 52... Ke8 {[%clk 0:00:01.2]} 53. Nf4 {[%clk 0:00:02]} 1-0

[Event "Late-Titled-Tuesday-Blitz-June-25-2024"]
[Site "Chess.com"]
[Date "2024.06.25"]
[Round "5"]
[White "HalfIsCrayfish"]
[Black "VirtualCoach"]
[Result "1-0"]
[WhiteElo "2567"]
[BlackElo "2346"]
[TimeControl "180+1"]
[EndTime "14:55:12 PDT"]
[Termination "HalfIsCrayfish won on time"]

1. c3 {[%clk 0:03:00.9]} 1... c5 {[%clk 0:02:58]} 2. Na3 {[%clk 0:03:00.1]} 2...
g6 {[%clk 0:02:55]} 3. Nc2 {[%clk 0:03:00.5]} 3... Bg7 {[%clk 0:02:52.9]} 4. d4
{[%clk 0:03:00.9]} 4... cxd4 {[%clk 0:02:50.1]} 5. cxd4 {[%clk 0:02:57.2]} 5...
Nf6 {[%clk 0:02:50.5]} 6. g3 {[%clk 0:02:49.9]} 6... O-O {[%clk 0:02:49.6]} 7.
Bg2 {[%clk 0:02:50.3]} 7... d5 {[%clk 0:02:49.9]} 8. Nf3 {[%clk 0:02:50.4]} 8...
Nc6 {[%clk 0:02:49.5]} 9. O-O {[%clk 0:02:50.6]} 9... Bf5 {[%clk 0:02:49.5]} 10.
Bd2 {[%clk 0:02:43.9]} 10... Rc8 {[%clk 0:02:48.8]} 11. Nb4 {[%clk 0:02:33.5]}
11... Ne4 {[%clk 0:02:40.9]} 12. Nxc6 {[%clk 0:02:30.6]} 12... Rxc6 {[%clk
0:02:40.5]} 13. Ne5 {[%clk 0:02:30.5]} 13... Rb6 {[%clk 0:02:34.5]} 14. Ba5
{[%clk 0:02:27.7]} 14... f6 {[%clk 0:02:13.8]} 15. Nd3 {[%clk 0:02:22.7]} 15...
Qd6 {[%clk 0:02:10.2]} 16. Bxb6 {[%clk 0:02:04.5]} 16... Qxb6 {[%clk 0:02:11.1]}
17. f3 {[%clk 0:01:56.1]} 17... Nd6 {[%clk 0:02:09.2]} 18. e3 {[%clk 0:01:54.8]}
18... Nc4 {[%clk 0:02:05.2]} 19. Qe2 {[%clk 0:01:53.8]} 19... e5 {[%clk
0:01:58]} 20. b3 {[%clk 0:01:46.3]} 20... Nd6 {[%clk 0:01:43.4]} 21. Nc5 {[%clk
0:01:42.7]} 21... Re8 {[%clk 0:01:31.5]} 22. Qf2 {[%clk 0:01:40.2]} 22... Qb4
{[%clk 0:01:23.5]} 23. f4 {[%clk 0:01:19.1]} 23... e4 {[%clk 0:01:22.4]} 24.
Rfc1 {[%clk 0:01:15.5]} 24... Bc8 {[%clk 0:00:55.6]} 25. Qe1 {[%clk 0:01:11.5]}
25... Qb6 {[%clk 0:00:53.4]} 26. a4 {[%clk 0:01:11]} 26... a5 {[%clk 0:00:52.7]}
27. Bf1 {[%clk 0:01:09.5]} 27... g5 {[%clk 0:00:47.3]} 28. Rab1 {[%clk
0:01:08.7]} 28... gxf4 {[%clk 0:00:41.8]} 29. gxf4 {[%clk 0:01:08.9]} 29... Kh8
{[%clk 0:00:37.1]} 30. Kh1 {[%clk 0:01:07.3]} 30... Bg4 {[%clk 0:00:33.1]} 31.
Be2 {[%clk 0:01:06.9]} 31... Bc8 {[%clk 0:00:25.8]} 32. b4 {[%clk 0:01:06.5]}
32... axb4 {[%clk 0:00:25.1]} 33. Qxb4 {[%clk 0:01:01]} 33... Qd8 {[%clk
0:00:25.1]} 34. Rg1 {[%clk 0:00:52.5]} 34... Rg8 {[%clk 0:00:24.6]} 35. Qd2
{[%clk 0:00:49.5]} 35... b6 {[%clk 0:00:19]} 36. Nb3 {[%clk 0:00:48.8]} 36...
Qe8 {[%clk 0:00:18.6]} 37. a5 {[%clk 0:00:48.8]} 37... bxa5 {[%clk 0:00:14]} 38.
Nxa5 {[%clk 0:00:48.2]} 38... Qe6 {[%clk 0:00:14.4]} 39. Bg4 {[%clk 0:00:46.2]}
39... f5 {[%clk 0:00:14.1]} 40. Be2 {[%clk 0:00:45.2]} 40... Qh6 {[%clk
0:00:14.6]} 41. Rb6 {[%clk 0:00:41.4]} 41... Bf8 {[%clk 0:00:11.2]} 42. Rxg8+
{[%clk 0:00:40]} 42... Kxg8 {[%clk 0:00:12.1]} 43. Qe1 {[%clk 0:00:33.8]} 43...
Qf6 {[%clk 0:00:09.8]} 44. Nb3 {[%clk 0:00:32.6]} 44... Qd8 {[%clk 0:00:09.5]}
45. Qa5 {[%clk 0:00:21.7]} 45... Qh4 {[%clk 0:00:08.2]} 46. Qd2 {[%clk
0:00:10.4]} 46... Qf2 {[%clk 0:00:07.5]} 47. Rc6 {[%clk 0:00:07]} 47... Nc4
{[%clk 0:00:07.4]} 48. Rxc4 {[%clk 0:00:07.4]} 48... dxc4 {[%clk 0:00:07.5]} 49.
Bxc4+ {[%clk 0:00:07.8]} 1-0